[Event "Titled Tuesday Blitz July 26 Late 2022"]
[White "Blanco Ronquillo, Humberto L."]
[Black "Grischuk, Alexander"]
[WhiteFideId "3504239"]
[BlackFideId "4126025"]
[WhiteElo "2423"]
[BlackElo "2762"]
[Result "0-1"]
[Round "02"]
[TimeControl "180+1"]
[Date "2022.07.26"]
[WhiteClock "0:00:01"]
[BlackClock "0:00:06"]

1. e4 {[%clk 0:03:00]}  e6 {[%clk 0:03:00]} 2. d4 {[%clk 0:02:59]}  d5 {[%clk 0:03:00]} 3. Nd2 {[%clk 0:03:00]}  c5 {[%clk 0:03:00]} 4. exd5 {[%clk 0:03:00]}  Qxd5 {[%clk 0:03:01]} 5. Ngf3 {[%clk 0:02:59]}  cxd4 {[%clk 0:03:01]} 6. Bc4 {[%clk 0:03:00]}  Qd6 {[%clk 0:03:02]} 7. O-O {[%clk 0:03:00]}  Nf6 {[%clk 0:03:02]} 8. Nb3 {[%clk 0:03:00]}  Nc6 {[%clk 0:03:03]} 9. Nbxd4 {[%clk 0:03:01]}  Nxd4 {[%clk 0:03:04]} 10. Qxd4 {[%clk 0:03:01]}  Qxd4 {[%clk 0:02:47]} 11. Nxd4 {[%clk 0:03:01]}  Bd7 {[%clk 0:02:48]} 12. Be2 {[%clk 0:03:00]}  Bc5 {[%clk 0:02:45]} 13. Nb3 {[%clk 0:02:59]}  Bb6 {[%clk 0:02:46]} 14. Bf3 {[%clk 0:02:58]}  Rc8 {[%clk 0:02:32]} 15. c3 {[%clk 0:02:46]}  Bc6 {[%clk 0:02:32]} 16. Bxc6+ {[%clk 0:02:44]}  Rxc6 {[%clk 0:02:33]} 17. Bg5 {[%clk 0:02:02]}  Nd5 {[%clk 0:02:32]} 18. Rad1 {[%clk 0:02:02]}  f6 {[%clk 0:02:13]} 19. Bc1 {[%clk 0:02:02]}  Kf7 {[%clk 0:02:13]} 20. Nd4 {[%clk 0:02:01]}  Bxd4 {[%clk 0:02:07]} 21. Rxd4 {[%clk 0:02:02]}  b5 {[%clk 0:02:07]} 22. Rfd1 {[%clk 0:01:50]}  Rhc8 {[%clk 0:02:03]} 23. a3 {[%clk 0:01:48]}  a5 {[%clk 0:01:55]} 24. Be3 {[%clk 0:01:47]}  g5 {[%clk 0:01:42]} 25. Kf1 {[%clk 0:01:46]}  h5 {[%clk 0:01:41]} 26. Ke2 {[%clk 0:01:45]}  Kg6 {[%clk 0:01:36]} 27. f3 {[%clk 0:01:41]}  h4 {[%clk 0:01:21]} 28. Bf2 {[%clk 0:01:37]}  Nb6 {[%clk 0:00:55]} 29. Kd2 {[%clk 0:01:21]}  Nc4+ {[%clk 0:00:33]} 30. Kc2 {[%clk 0:01:20]}  b4 {[%clk 0:00:22]} 31. axb4 {[%clk 0:01:21]}  axb4 {[%clk 0:00:22]} 32. Rd8 {[%clk 0:01:04]}  bxc3 {[%clk 0:00:22]} 33. Rxc8 {[%clk 0:00:59]}  Rxc8 {[%clk 0:00:23]} 34. bxc3 {[%clk 0:00:59]}  Kf5 {[%clk 0:00:23]} 35. Rd4 {[%clk 0:00:47]}  e5 {[%clk 0:00:19]} 36. Rd7 {[%clk 0:00:46]}  e4 {[%clk 0:00:11]} 37. fxe4+ {[%clk 0:00:45]}  Kxe4 {[%clk 0:00:12]} 38. Bd4 {[%clk 0:00:44]}  Ne5 {[%clk 0:00:09]} 39. Re7 {[%clk 0:00:44]}  Kf5 {[%clk 0:00:09]} 40. Bxe5 {[%clk 0:00:26]}  fxe5 {[%clk 0:00:10]} 41. Kd3 {[%clk 0:00:26]}  Ra8 {[%clk 0:00:09]} 42. Rf7+ {[%clk 0:00:24]}  Ke6 {[%clk 0:00:09]} 43. Rf2 {[%clk 0:00:24]}  Ra4 {[%clk 0:00:07]} 44. Rc2 {[%clk 0:00:19]}  Rf4 {[%clk 0:00:05]} 45. Ke3 {[%clk 0:00:16]}  Kd5 {[%clk 0:00:04]} 46. Rd2+ {[%clk 0:00:12]}  Ke6 {[%clk 0:00:04]} 47. g3 {[%clk 0:00:11]}  hxg3 {[%clk 0:00:03]} 48. hxg3 {[%clk 0:00:12]}  Rg4 {[%clk 0:00:04]} 49. Kf3 {[%clk 0:00:11]}  Rc4 {[%clk 0:00:05]} 50. Rc2 {[%clk 0:00:12]}  Kf5 {[%clk 0:00:04]} 51. Ke3 {[%clk 0:00:11]}  Re4+ {[%clk 0:00:04]} 52. Kf3 {[%clk 0:00:11]}  g4+ {[%clk 0:00:04]} 53. Kf2 {[%clk 0:00:12]}  Ke6 {[%clk 0:00:05]} 54. c4 {[%clk 0:00:12]}  Kd6 {[%clk 0:00:05]} 55. Rd2+ {[%clk 0:00:11]}  Kc5 {[%clk 0:00:05]} 56. Rc2 {[%clk 0:00:08]}  Rxc4 {[%clk 0:00:05]} 57. Re2 {[%clk 0:00:09]}  Kd5 {[%clk 0:00:05]} 58. Rd2+ {[%clk 0:00:09]}  Rd4 {[%clk 0:00:06]} 59. Ra2 {[%clk 0:00:10]}  Rd3 {[%clk 0:00:04]} 60. Ra5+ {[%clk 0:00:09]}  Ke4 {[%clk 0:00:04]} 61. Ra4+ {[%clk 0:00:09]}  Rd4 {[%clk 0:00:05]} 62. Ra8 {[%clk 0:00:09]}  Rd2+ {[%clk 0:00:05]} 63. Ke1 {[%clk 0:00:09]}  Rg2 {[%clk 0:00:05]} 64. Ra4+ {[%clk 0:00:05]}  Kf5 {[%clk 0:00:04]} 65. Ra3 {[%clk 0:00:06]}  Rc2 {[%clk 0:00:03]} 66. Rb3 {[%clk 0:00:05]}  Ke4 {[%clk 0:00:02]} 67. Ra3 {[%clk 0:00:05]}  Rc4 {[%clk 0:00:02]} 68. Rb3 {[%clk 0:00:05]}  Rd4 {[%clk 0:00:02]} 69. Ke2 {[%clk 0:00:05]}  Ra4 {[%clk 0:00:02]} 70. Rc3 {[%clk 0:00:05]}  Ra2+ {[%clk 0:00:02]} 71. Ke1 {[%clk 0:00:05]}  Ra4 {[%clk 0:00:02]} 72. Rb3 {[%clk 0:00:06]}  Kf5 {[%clk 0:00:03]} 73. Ke2 {[%clk 0:00:05]}  Re4+ {[%clk 0:00:04]} 74. Kf2 {[%clk 0:00:06]}  Rd4 {[%clk 0:00:05]} 75. Ke2 {[%clk 0:00:06]}  Ke4 {[%clk 0:00:05]} 76. Kf2 {[%clk 0:00:06]}  Rd3 {[%clk 0:00:05]} 77. Rb4+ {[%clk 0:00:05]}  Rd4 {[%clk 0:00:05]} 78. Rb3 {[%clk 0:00:05]}  Rd2+ {[%clk 0:00:05]} 79. Ke1 {[%clk 0:00:04]}  Rd3 {[%clk 0:00:06]} 80. Rb4+ {[%clk 0:00:04]}  Kf3 {[%clk 0:00:06]} 81. Rb5 {[%clk 0:00:03]}  e4 {[%clk 0:00:06]} 82. Re5 {[%clk 0:00:04]}  Ra3 {[%clk 0:00:05]} 83. Rf5+ {[%clk 0:00:03]}  Kxg3 {[%clk 0:00:05]} 84. Ke2 {[%clk 0:00:04]}  Rf3 {[%clk 0:00:04]} 85. Re5 {[%clk 0:00:04]}  Kg2 {[%clk 0:00:04]} 86. Rxe4 {[%clk 0:00:04]}  g3 {[%clk 0:00:04]} 87. Re8 {[%clk 0:00:03]}  Rf7 {[%clk 0:00:04]} 88. Rg8 {[%clk 0:00:03]}  Re7+ {[%clk 0:00:04]} 89. Kd2 {[%clk 0:00:03]}  Kf2 {[%clk 0:00:05]} 90. Rf8+ {[%clk 0:00:03]}  Kg1 {[%clk 0:00:05]} 91. Rg8 {[%clk 0:00:03]}  g2 {[%clk 0:00:05]} 92. Rf8 {[%clk 0:00:04]}  Rh7 {[%clk 0:00:05]} 93. Ke2 {[%clk 0:00:04]}  Kh1 {[%clk 0:00:06]} 94. Rg8 {[%clk 0:00:03]}  g1=Q {[%clk 0:00:05]} 95. Rxg1+ {[%clk 0:00:01]}  Kxg1 {[%clk 0:00:06]} 0-1


[Site "https://www.chess.com"]

[Event "Titled Tuesday Blitz July 26 Late 2022"]
[White "Chiu, Isaac"]
[Black "Salem, A.R. Saleh"]
[WhiteFideId "30900654"]
[BlackFideId "9301348"]
[WhiteElo "2181"]
[BlackElo "2679"]
[Result "*"]
[Round "02"]
[TimeControl "180+1"]
[Date "2022.07.26"]
[WhiteClock "0:02:06"]
[BlackClock "0:02:13"]

1. c4 {[%clk 0:03:00]}  e6 {[%clk 0:02:57]} 2. Nf3 {[%clk 0:03:00]}  d5 {[%clk 0:02:58]} 3. g3 {[%clk 0:03:01]}  Nf6 {[%clk 0:02:59]} 4. Bg2 {[%clk 0:03:01]}  d4 {[%clk 0:02:59]} 5. O-O {[%clk 0:03:01]}  c5 {[%clk 0:03:00]} 6. e3 {[%clk 0:03:01]}  Nc6 {[%clk 0:03:01]} 7. exd4 {[%clk 0:03:01]}  cxd4 {[%clk 0:03:02]} 8. b3 {[%clk 0:03:01]}  Bd6 {[%clk 0:02:57]} 9. d3 {[%clk 0:03:00]}  O-O {[%clk 0:02:57]} 10. Ba3 {[%clk 0:03:00]}  Bxa3 {[%clk 0:02:41]} 11. Nxa3 {[%clk 0:03:01]}  Re8 {[%clk 0:02:39]} 12. Re1 {[%clk 0:02:58]}  h6 {[%clk 0:02:37]} 13. Nc2 {[%clk 0:02:54]}  Qd6 {[%clk 0:02:37]} 14. a3 {[%clk 0:02:52]}  a5 {[%clk 0:02:36]} 15. Rb1 {[%clk 0:02:53]}  e5 {[%clk 0:02:32]} 16. b4 {[%clk 0:02:53]}  axb4 {[%clk 0:02:32]} 17. axb4 {[%clk 0:02:54]}  Bg4 {[%clk 0:02:32]} 18. b5 {[%clk 0:02:50]}  Na5 {[%clk 0:02:24]} 19. h3 {[%clk 0:02:47]}  Bf5 {[%clk 0:02:22]} 20. Qd2 {[%clk 0:02:33]}  Nd7 {[%clk 0:02:14]} 21. Nb4 {[%clk 0:02:27]}  Nc5 {[%clk 0:02:14]} 22. Kh2 {[%clk 0:02:06]}  Ncb3 {[%clk 0:02:13]} *


[Site "https://www.chess.com"]

[Event "Titled Tuesday Blitz July 26 Late 2022"]
[White "Cremisi, Daniel"]
[Black "Bartholomew, John"]
[WhiteFideId "2089882"]
[BlackFideId "2019353"]
[WhiteElo "2172"]
[BlackElo "2753"]
[Result "0-1"]
[Round "02"]
[TimeControl "180+1"]
[Date "2022.07.27"]
[WhiteClock "0:01:47"]
[BlackClock "0:00:54"]

1. d4 {[%clk 0:03:00]}  d6 {[%clk 0:03:00]} 2. Nf3 {[%clk 0:03:00]}  Nf6 {[%clk 0:02:59]} 3. c4 {[%clk 0:03:00]}  Nbd7 {[%clk 0:02:59]} 4. Nc3 {[%clk 0:03:00]}  e5 {[%clk 0:02:59]} 5. e4 {[%clk 0:03:00]}  Be7 {[%clk 0:02:59]} 6. d5 {[%clk 0:03:00]}  Nc5 {[%clk 0:02:56]} 7. Qc2 {[%clk 0:03:00]}  a5 {[%clk 0:02:57]} 8. Be3 {[%clk 0:02:59]}  b6 {[%clk 0:02:53]} 9. Be2 {[%clk 0:02:55]}  O-O {[%clk 0:02:51]} 10. O-O {[%clk 0:02:54]}  Ng4 {[%clk 0:02:48]} 11. Bd2 {[%clk 0:02:51]}  f5 {[%clk 0:02:46]} 12. Ne1 {[%clk 0:02:49]}  Nf6 {[%clk 0:02:41]} 13. f3 {[%clk 0:02:40]}  f4 {[%clk 0:02:39]} 14. Nd3 {[%clk 0:02:40]}  g5 {[%clk 0:02:37]} 15. a3 {[%clk 0:02:38]}  Nxd3 {[%clk 0:02:24]} 16. Bxd3 {[%clk 0:02:37]}  g4 {[%clk 0:02:22]} 17. b4 {[%clk 0:02:33]}  gxf3 {[%clk 0:02:14]} 18. gxf3 {[%clk 0:02:26]}  Bh3 {[%clk 0:02:13]} 19. Rfb1 {[%clk 0:02:24]}  Kh8 {[%clk 0:02:10]} 20. Kh1 {[%clk 0:02:21]}  Rg8 {[%clk 0:02:07]} 21. Bf1 {[%clk 0:02:18]}  Qd7 {[%clk 0:02:04]} 22. Qd3 {[%clk 0:02:12]}  Rg6 {[%clk 0:01:52]} 23. Bxh3 {[%clk 0:02:04]}  Qxh3 {[%clk 0:01:51]} 24. Rg1 {[%clk 0:02:05]}  Ng4 {[%clk 0:01:15]} 25. Qe2 {[%clk 0:01:55]}  Nxh2 {[%clk 0:01:12]} 26. Qxh2 {[%clk 0:01:47]}  Qxf3+ {[%clk 0:01:11]} 27. Rg2 {[%clk 0:01:48]}  Rag8 {[%clk 0:00:58]} 28. Rg1 {[%clk 0:01:47]}  Rg3 {[%clk 0:00:54]} 0-1


[Site "https://www.chess.com"]

[Event "Titled Tuesday Blitz July 26 Late 2022"]
[White "Danielyan, Vahe"]
[Black "Melikyan, Gnel"]
[WhiteFideId "13304828"]
[BlackFideId "54109990"]
[WhiteElo "2419"]
[BlackElo "1772"]
[Result "1-0"]
[Round "02"]
[TimeControl "180+1"]
[Date "2022.07.27"]
[WhiteClock "0:01:00"]
[BlackClock "0:00:06"]

1. c4 {[%clk 0:03:00]}  Nf6 {[%clk 0:02:59]} 2. Nc3 {[%clk 0:03:01]}  g6 {[%clk 0:02:59]} 3. e4 {[%clk 0:03:01]}  d6 {[%clk 0:03:00]} 4. g3 {[%clk 0:03:00]}  Bg7 {[%clk 0:03:00]} 5. Bg2 {[%clk 0:03:01]}  O-O {[%clk 0:03:00]} 6. Nge2 {[%clk 0:03:01]}  e5 {[%clk 0:02:59]} 7. d4 {[%clk 0:03:00]}  exd4 {[%clk 0:02:57]} 8. Nxd4 {[%clk 0:03:01]}  Re8 {[%clk 0:02:54]} 9. O-O {[%clk 0:03:00]}  c6 {[%clk 0:02:54]} 10. h3 {[%clk 0:02:58]}  Nbd7 {[%clk 0:02:52]} 11. Re1 {[%clk 0:02:58]}  a5 {[%clk 0:02:49]} 12. Bf4 {[%clk 0:02:53]}  Nc5 {[%clk 0:02:43]} 13. g4 {[%clk 0:02:51]}  Qc7 {[%clk 0:02:29]} 14. Qd2 {[%clk 0:02:50]}  Nfd7 {[%clk 0:02:23]} 15. Rad1 {[%clk 0:02:47]}  Ne5 {[%clk 0:02:20]} 16. b3 {[%clk 0:02:41]}  Ned3 {[%clk 0:01:57]} 17. Be3 {[%clk 0:02:26]}  Nxe1 {[%clk 0:01:50]} 18. Rxe1 {[%clk 0:02:27]}  Ne6 {[%clk 0:01:42]} 19. Nde2 {[%clk 0:02:20]}  Nc5 {[%clk 0:01:35]} 20. Rd1 {[%clk 0:02:18]}  Be6 {[%clk 0:01:17]} 21. f4 {[%clk 0:02:17]}  f5 {[%clk 0:01:14]} 22. gxf5 {[%clk 0:02:15]}  gxf5 {[%clk 0:01:13]} 23. e5 {[%clk 0:02:16]}  dxe5 {[%clk 0:00:59]} 24. Bxc5 {[%clk 0:02:16]}  Rad8 {[%clk 0:00:47]} 25. Bd6 {[%clk 0:02:16]}  Qb6+ {[%clk 0:00:45]} 26. c5 {[%clk 0:02:16]}  Qb4 {[%clk 0:00:46]} 27. fxe5 {[%clk 0:02:14]}  Bxe5 {[%clk 0:00:44]} 28. Qg5+ {[%clk 0:02:14]}  Bg7 {[%clk 0:00:43]} 29. Rd4 {[%clk 0:02:08]}  h6 {[%clk 0:00:29]} 30. Qg3 {[%clk 0:01:34]}  f4 {[%clk 0:00:26]} 31. Rxf4 {[%clk 0:01:32]}  Qa3 {[%clk 0:00:22]} 32. Ne4 {[%clk 0:01:30]}  Kh8 {[%clk 0:00:15]} 33. Rf6 {[%clk 0:01:21]}  Bd5 {[%clk 0:00:13]} 34. Be5 {[%clk 0:01:19]}  Rxe5 {[%clk 0:00:11]} 35. Qxe5 {[%clk 0:01:20]}  Bxe4 {[%clk 0:00:06]} 36. Rxh6+ {[%clk 0:01:20]}  Bh7 {[%clk 0:00:05]} 37. Rxh7+ {[%clk 0:01:05]}  Kxh7 {[%clk 0:00:05]} 38. Be4+ {[%clk 0:01:06]}  Kh8 {[%clk 0:00:05]} 39. Qh5+ {[%clk 0:01:02]}  Kg8 {[%clk 0:00:05]} 40. Bh7+ {[%clk 0:01:01]}  Kh8 {[%clk 0:00:05]} 41. Bf5+ {[%clk 0:01:00]}  Kg8 {[%clk 0:00:05]} 42. Be6+ {[%clk 0:01:00]}  Kf8 {[%clk 0:00:06]} 43. Qf7# {[%clk 0:01:00]} 1-0


[Site "https://www.chess.com"]

[Event "Titled Tuesday Blitz July 26 Late 2022"]
[White "Drygalov, Andrey"]
[Black "Yedidia, Daniel"]
[WhiteFideId "24171735"]
[BlackFideId "30905907"]
[WhiteElo "2531"]
[BlackElo "2542"]
[Result "1-0"]
[Round "02"]
[TimeControl "180+1"]
[Date "2022.07.26"]
[WhiteClock "0:00:11"]
[BlackClock "0:00:01"]

1. e4 {[%clk 0:02:59]}  e5 {[%clk 0:03:00]} 2. Nf3 {[%clk 0:02:55]}  Nc6 {[%clk 0:03:00]} 3. Bc4 {[%clk 0:02:56]}  Nf6 {[%clk 0:03:00]} 4. d3 {[%clk 0:02:55]}  Be7 {[%clk 0:03:00]} 5. O-O {[%clk 0:02:55]}  O-O {[%clk 0:03:00]} 6. c3 {[%clk 0:02:56]}  d6 {[%clk 0:03:01]} 7. Re1 {[%clk 0:02:52]}  Na5 {[%clk 0:03:01]} 8. Bb5 {[%clk 0:02:52]}  a6 {[%clk 0:03:02]} 9. Ba4 {[%clk 0:02:52]}  b5 {[%clk 0:03:02]} 10. Bc2 {[%clk 0:02:53]}  c5 {[%clk 0:03:03]} 11. Nbd2 {[%clk 0:02:53]}  Nc6 {[%clk 0:03:03]} 12. Nf1 {[%clk 0:02:54]}  Qc7 {[%clk 0:03:01]} 13. Ng3 {[%clk 0:02:54]}  Re8 {[%clk 0:02:59]} 14. h3 {[%clk 0:02:54]}  Be6 {[%clk 0:02:55]} 15. d4 {[%clk 0:02:48]}  cxd4 {[%clk 0:02:52]} 16. cxd4 {[%clk 0:02:46]}  exd4 {[%clk 0:02:49]} 17. Bf4 {[%clk 0:02:45]}  Nd7 {[%clk 0:02:44]} 18. Rc1 {[%clk 0:02:39]}  Qb6 {[%clk 0:02:25]} 19. Nf5 {[%clk 0:02:22]}  Bxf5 {[%clk 0:02:20]} 20. exf5 {[%clk 0:02:23]}  Nde5 {[%clk 0:02:08]} 21. Be4 {[%clk 0:02:22]}  Rac8 {[%clk 0:02:04]} 22. a3 {[%clk 0:01:44]}  Bf6 {[%clk 0:01:54]} 23. Bd5 {[%clk 0:01:33]}  Nxf3+ {[%clk 0:01:40]} 24. Qxf3 {[%clk 0:01:31]}  Ne5 {[%clk 0:01:40]} 25. Qb3 {[%clk 0:01:28]}  Qa7 {[%clk 0:01:25]} 26. Bd2 {[%clk 0:01:20]}  Qd7 {[%clk 0:01:14]} 27. g4 {[%clk 0:01:07]}  h6 {[%clk 0:01:13]} 28. Bb4 {[%clk 0:00:59]}  Bg5 {[%clk 0:01:02]} 29. Rcd1 {[%clk 0:00:58]}  d3 {[%clk 0:00:46]} 30. Bc3 {[%clk 0:00:54]}  Nc4 {[%clk 0:00:21]} 31. Rxe8+ {[%clk 0:00:46]}  Rxe8 {[%clk 0:00:20]} 32. Bxc4 {[%clk 0:00:44]}  bxc4 {[%clk 0:00:21]} 33. Qxc4 {[%clk 0:00:44]}  d2 {[%clk 0:00:09]} 34. Qd4 {[%clk 0:00:39]}  f6 {[%clk 0:00:03]} 35. f4 {[%clk 0:00:31]}  Bh4 {[%clk 0:00:02]} 36. Rxd2 {[%clk 0:00:31]}  Qb5 {[%clk 0:00:02]} 37. Qd5+ {[%clk 0:00:31]}  Qxd5 {[%clk 0:00:02]} 38. Rxd5 {[%clk 0:00:32]}  Re2 {[%clk 0:00:03]} 39. Rxd6 {[%clk 0:00:30]}  Bg3 {[%clk 0:00:03]} 40. Rd8+ {[%clk 0:00:25]}  Kh7 {[%clk 0:00:03]} 41. Rd7 {[%clk 0:00:25]}  Kg8 {[%clk 0:00:04]} 42. Ra7 {[%clk 0:00:21]}  Bxf4 {[%clk 0:00:04]} 43. Ra8+ {[%clk 0:00:20]}  Kh7 {[%clk 0:00:04]} 44. Rxa6 {[%clk 0:00:20]}  Rh2 {[%clk 0:00:02]} 45. Ra4 {[%clk 0:00:12]}  Bd6 {[%clk 0:00:01]} 46. Rd4 {[%clk 0:00:12]}  Bg3 {[%clk 0:00:01]} 47. Rd3 {[%clk 0:00:12]}  Rxh3 {[%clk 0:00:01]} 48. Kg2 {[%clk 0:00:11]} 1-0


[Site "https://www.chess.com"]

[Event "Titled Tuesday Blitz July 26 Late 2022"]
[White "Fieberg, Samuel"]
[Black "Wagner, Dennis"]
[WhiteFideId "12901717"]
[BlackFideId "24650684"]
[WhiteElo "2415"]
[BlackElo "2355"]
[Result "0-1"]
[Round "02"]
[TimeControl "180+1"]
[Date "2022.07.27"]
[WhiteClock "0:00:54"]
[BlackClock "0:01:31"]

1. d4 {[%clk 0:03:00]}  Nf6 {[%clk 0:03:00]} 2. Nc3 {[%clk 0:03:01]}  d5 {[%clk 0:03:00]} 3. Bf4 {[%clk 0:03:01]}  c5 {[%clk 0:03:00]} 4. e4 {[%clk 0:03:01]}  Nxe4 {[%clk 0:03:00]} 5. Nxe4 {[%clk 0:03:01]}  dxe4 {[%clk 0:03:01]} 6. dxc5 {[%clk 0:03:01]}  Qa5+ {[%clk 0:02:58]} 7. Qd2 {[%clk 0:03:01]}  Qxd2+ {[%clk 0:02:47]} 8. Bxd2 {[%clk 0:02:42]}  Nc6 {[%clk 0:02:42]} 9. O-O-O {[%clk 0:02:41]}  e5 {[%clk 0:02:38]} 10. b4 {[%clk 0:02:41]}  Be6 {[%clk 0:02:37]} 11. a3 {[%clk 0:02:28]}  a5 {[%clk 0:02:34]} 12. b5 {[%clk 0:02:21]}  Nd4 {[%clk 0:02:32]} 13. Ne2 {[%clk 0:02:08]}  Bxc5 {[%clk 0:02:28]} 14. Kb2 {[%clk 0:02:05]}  Nxe2 {[%clk 0:02:17]} 15. Bxe2 {[%clk 0:02:05]}  Bxf2 {[%clk 0:02:17]} 16. Rhf1 {[%clk 0:02:04]}  e3 {[%clk 0:02:17]} 17. Bc3 {[%clk 0:02:01]}  f6 {[%clk 0:02:09]} 18. Be1 {[%clk 0:01:52]}  Bxe1 {[%clk 0:02:04]} 19. Rfxe1 {[%clk 0:01:53]}  f5 {[%clk 0:01:56]} 20. Bf3 {[%clk 0:01:45]}  e4 {[%clk 0:01:54]} 21. Rxe3 {[%clk 0:01:44]}  Ke7 {[%clk 0:01:45]} 22. Be2 {[%clk 0:01:37]}  Rhd8 {[%clk 0:01:44]} 23. Rxd8 {[%clk 0:01:27]}  Rxd8 {[%clk 0:01:45]} 24. Kc3 {[%clk 0:01:08]}  Kf6 {[%clk 0:01:45]} 25. g4 {[%clk 0:01:02]}  g6 {[%clk 0:01:42]} 26. Rh3 {[%clk 0:00:59]}  h5 {[%clk 0:01:31]} 27. gxh5 {[%clk 0:00:56]}  f4 {[%clk 0:01:31]} 28. Rh4 {[%clk 0:00:54]}  g5 {[%clk 0:01:31]} 0-1


[Site "https://www.chess.com"]

[Event "Titled Tuesday Blitz July 26 Late 2022"]
[White "Havanecz, Bianka"]
[Black "Daggupati, Balaji"]
[WhiteFideId "704814"]
[BlackFideId "2090759"]
[WhiteElo "2314"]
[BlackElo "2702"]
[Result "0-1"]
[Round "02"]
[TimeControl "180+1"]
[Date "2022.07.27"]
[WhiteClock "0:00:01"]
[BlackClock "0:01:22"]

1. d4 {[%clk 0:03:00]}  d5 {[%clk 0:02:55]} 2. c4 {[%clk 0:03:01]}  c6 {[%clk 0:02:56]} 3. Nf3 {[%clk 0:03:00]}  Nf6 {[%clk 0:02:56]} 4. Nc3 {[%clk 0:03:00]}  e6 {[%clk 0:02:56]} 5. e3 {[%clk 0:02:58]}  Nbd7 {[%clk 0:02:55]} 6. b3 {[%clk 0:02:56]}  Bb4 {[%clk 0:02:54]} 7. Bd2 {[%clk 0:02:56]}  O-O {[%clk 0:02:52]} 8. Bd3 {[%clk 0:02:53]}  dxc4 {[%clk 0:02:43]} 9. bxc4 {[%clk 0:02:52]}  Qe7 {[%clk 0:02:44]} 10. O-O {[%clk 0:02:39]}  e5 {[%clk 0:02:44]} 11. dxe5 {[%clk 0:02:08]}  Nxe5 {[%clk 0:02:45]} 12. Nxe5 {[%clk 0:02:07]}  Qxe5 {[%clk 0:02:45]} 13. Qc2 {[%clk 0:01:52]}  Rd8 {[%clk 0:02:43]} 14. Rad1 {[%clk 0:01:32]}  Be6 {[%clk 0:02:39]} 15. Ne2 {[%clk 0:01:15]}  Bxd2 {[%clk 0:02:17]} 16. Rxd2 {[%clk 0:01:11]}  Rd7 {[%clk 0:02:17]} 17. Rfd1 {[%clk 0:01:08]}  Rad8 {[%clk 0:02:17]} 18. Nf4 {[%clk 0:01:02]}  Bg4 {[%clk 0:02:17]} 19. Rb1 {[%clk 0:00:56]}  h6 {[%clk 0:02:12]} 20. h3 {[%clk 0:00:55]}  Bf5 {[%clk 0:02:12]} 21. Rbd1 {[%clk 0:00:51]}  Ne4 {[%clk 0:02:06]} 22. Bxe4 {[%clk 0:00:49]}  Bxe4 {[%clk 0:02:07]} 23. Rxd7 {[%clk 0:00:46]}  Rxd7 {[%clk 0:02:08]} 24. Qc1 {[%clk 0:00:42]}  Rd6 {[%clk 0:01:53]} 25. Rxd6 {[%clk 0:00:41]}  Qxd6 {[%clk 0:01:54]} 26. c5 {[%clk 0:00:38]}  Qe5 {[%clk 0:01:51]} 27. a3 {[%clk 0:00:28]}  Bf5 {[%clk 0:01:41]} 28. g4 {[%clk 0:00:19]}  Be4 {[%clk 0:01:39]} 29. Ne2 {[%clk 0:00:10]}  h5 {[%clk 0:01:36]} 30. Ng3 {[%clk 0:00:09]}  Bf3 {[%clk 0:01:34]} 31. gxh5 {[%clk 0:00:08]}  Qe6 {[%clk 0:01:31]} 32. Kh2 {[%clk 0:00:08]}  Qd5 {[%clk 0:01:25]} 33. Qc3 {[%clk 0:00:06]}  Qa2 {[%clk 0:01:24]} 34. Kg1 {[%clk 0:00:02]}  Qb1+ {[%clk 0:01:24]} 35. Kh2 {[%clk 0:00:01]}  Qa2 {[%clk 0:01:22]} 0-1


[Site "https://www.chess.com"]

[Event "Titled Tuesday Blitz July 26 Late 2022"]
[White "Isajevsky, Anton"]
[Black "Lashkin, Jegor"]
[WhiteFideId "4142500"]
[BlackFideId "13907808"]
[WhiteElo "2510"]
[BlackElo "2368"]
[Result "0-1"]
[Round "02"]
[TimeControl "180+1"]
[Date "2022.07.26"]
[WhiteClock "0:00:02"]
[BlackClock "0:01:29"]

1. c4 {[%clk 0:03:00]}  b6 {[%clk 0:02:57]} 2. Nc3 {[%clk 0:02:59]}  Bb7 {[%clk 0:02:58]} 3. d4 {[%clk 0:02:59]}  f5 {[%clk 0:02:56]} 4. Nf3 {[%clk 0:02:58]}  e6 {[%clk 0:02:56]} 5. a3 {[%clk 0:02:46]}  Nf6 {[%clk 0:02:56]} 6. d5 {[%clk 0:02:44]}  Na6 {[%clk 0:02:56]} 7. g3 {[%clk 0:02:39]}  Nc5 {[%clk 0:02:55]} 8. Bg2 {[%clk 0:02:39]}  Bd6 {[%clk 0:02:54]} 9. O-O {[%clk 0:02:36]}  O-O {[%clk 0:02:54]} 10. Nd4 {[%clk 0:02:15]}  Be5 {[%clk 0:02:44]} 11. e3 {[%clk 0:01:40]}  a5 {[%clk 0:02:27]} 12. a4 {[%clk 0:01:00]}  Nfe4 {[%clk 0:02:12]} 13. Ra3 {[%clk 0:00:35]}  Qe7 {[%clk 0:02:04]} 14. Bd2 {[%clk 0:00:18]}  Qf7 {[%clk 0:01:52]} 15. Ndb5 {[%clk 0:00:08]}  c6 {[%clk 0:01:46]} 16. dxe6 {[%clk 0:00:08]}  dxe6 {[%clk 0:01:45]} 17. Nd4 {[%clk 0:00:08]}  Rad8 {[%clk 0:01:45]} 18. Nxe4 {[%clk 0:00:08]}  fxe4 {[%clk 0:01:44]} 19. Bc3 {[%clk 0:00:08]}  Qg6 {[%clk 0:01:37]} 20. Qe2 {[%clk 0:00:05]}  Bf6 {[%clk 0:01:33]} 21. Rd1 {[%clk 0:00:03]}  Rf7 {[%clk 0:01:29]} 22. Rd2 {[%clk 0:00:02]}  Rfd7 {[%clk 0:01:29]} 0-1


[Site "https://www.chess.com"]